{"text_format":"3","workbook":"xlsx","n_sheets":1,"sheets":["Lista de la compra"],"not_rendered":{"images":1,"external_links":1,"defined_names":3},"read":"whole","date_system":"1900"}

{"sheet":"Lista de la compra","index":0,"n_rows":31,"n_cols":8,"rows_kept":31,"merged":[[1,1,1,2]]}
[null,"Lista de la compra"]
[null,"FECHA"]
[null,"Comprado","Artículo","Categoría","Cantidad","Precio","Precio total","Marca o comentarios"]
[null,null,"Naranjas","Vegetales",null,null,{"$f":"IFERROR(SUM(ListadelaCompra[Cantidad]*ListadelaCompra[Precio]), \"\")","v":{"v":0,"d":"0.00 €"}}]
[null,null,"Manzanas","Vegetales",null,null,{"$f":"IFERROR(SUM(ListadelaCompra[Cantidad]*ListadelaCompra[Precio]), \"\")","v":{"v":0,"d":"0.00 €"}}]
[null,null,"Plátanos","Vegetales",null,null,{"$f":"IFERROR(SUM(ListadelaCompra[Cantidad]*ListadelaCompra[Precio]), \"\")","v":{"v":0,"d":"0.00 €"}}]
[null,null,"Lechuga","Vegetales",null,null,{"$f":"IFERROR(SUM(ListadelaCompra[Cantidad]*ListadelaCompra[Precio]), \"\")","v":{"v":0,"d":"0.00 €"}}]
[null,null,"Tomates","Vegetales",null,null,{"$f":"IFERROR(SUM(ListadelaCompra[Cantidad]*ListadelaCompra[Precio]), \"\")","v":{"v":0,"d":"0.00 €"}},"  "]
[null,null,"Leche ","Lácteos",null,null,{"$f":"IFERROR(SUM(ListadelaCompra[Cantidad]*ListadelaCompra[Precio]), \"\")","v":{"v":0,"d":"0.00 €"}}]
[null,null,"Queso","Lácteos",null,null,{"$f":"IFERROR(SUM(ListadelaCompra[Cantidad]*ListadelaCompra[Precio]), \"\")","v":{"v":0,"d":"0.00 €"}}]
[null,null,"Huevos","Lácteos",null,null,{"$f":"IFERROR(SUM(ListadelaCompra[Cantidad]*ListadelaCompra[Precio]), \"\")","v":{"v":0,"d":"0.00 €"}}]
[null,null,"Requesón","Lácteos",null,null,{"$f":"IFERROR(SUM(ListadelaCompra[Cantidad]*ListadelaCompra[Precio]), \"\")","v":{"v":0,"d":"0.00 €"}}]
[null,null,"Ternera","Carne",null,null,{"$f":"IFERROR(SUM(ListadelaCompra[Cantidad]*ListadelaCompra[Precio]), \"\")","v":{"v":0,"d":"0.00 €"}}]
[null,null,"Pollo","Carne",null,null,{"$f":"IFERROR(SUM(ListadelaCompra[Cantidad]*ListadelaCompra[Precio]), \"\")","v":{"v":0,"d":"0.00 €"}}]
[null,null,"Jamón","Carne",null,null,{"$f":"IFERROR(SUM(ListadelaCompra[Cantidad]*ListadelaCompra[Precio]), \"\")","v":{"v":0,"d":"0.00 €"}}]
[null,null,"Zumo","Bebidas",null,null,{"$f":"IFERROR(SUM(ListadelaCompra[Cantidad]*ListadelaCompra[Precio]), \"\")","v":{"v":0,"d":"0.00 €"}}]
[null,null,"Café","Bebidas",null,null,{"$f":"IFERROR(SUM(ListadelaCompra[Cantidad]*ListadelaCompra[Precio]), \"\")","v":{"v":0,"d":"0.00 €"}}]
[null,null,"Té","Bebidas",null,null,{"$f":"IFERROR(SUM(ListadelaCompra[Cantidad]*ListadelaCompra[Precio]), \"\")","v":{"v":0,"d":"0.00 €"}}]
[null,null,"Agua","Bebidas",null,null,{"$f":"IFERROR(SUM(ListadelaCompra[Cantidad]*ListadelaCompra[Precio]), \"\")","v":{"v":0,"d":"0.00 €"}}]
[null,null,"Fideos","Pasta",null,null,{"$f":"IFERROR(SUM(ListadelaCompra[Cantidad]*ListadelaCompra[Precio]), \"\")","v":{"v":0,"d":"0.00 €"}}]
[null,null,"Arroz","Pasta",null,null,{"$f":"IFERROR(SUM(ListadelaCompra[Cantidad]*ListadelaCompra[Precio]), \"\")","v":{"v":0,"d":"0.00 €"}}]
[null,null,"Conservas","Sopa",null,null,{"$f":"IFERROR(SUM(ListadelaCompra[Cantidad]*ListadelaCompra[Precio]), \"\")","v":{"v":0,"d":"0.00 €"}}]
[null,null,"Mezcla en polvo","Sopa",null,null,{"$f":"IFERROR(SUM(ListadelaCompra[Cantidad]*ListadelaCompra[Precio]), \"\")","v":{"v":0,"d":"0.00 €"}}]
[null,null,"Pan","Panadería",null,null,{"$f":"IFERROR(SUM(ListadelaCompra[Cantidad]*ListadelaCompra[Precio]), \"\")","v":{"v":0,"d":"0.00 €"}}]
[null,null,"Patatas fritas","Aperitivos",null,null,{"$f":"IFERROR(SUM(ListadelaCompra[Cantidad]*ListadelaCompra[Precio]), \"\")","v":{"v":0,"d":"0.00 €"}}]
[null,null,"Galletas saladas","Aperitivos",null,null,{"$f":"IFERROR(SUM(ListadelaCompra[Cantidad]*ListadelaCompra[Precio]), \"\")","v":{"v":0,"d":"0.00 €"}}]
[null,null,"Helado","Aperitivos",null,null,{"$f":"IFERROR(SUM(ListadelaCompra[Cantidad]*ListadelaCompra[Precio]), \"\")","v":{"v":0,"d":"0.00 €"}}]
[null,null,"Galletas","Aperitivos",null,null,{"$f":"IFERROR(SUM(ListadelaCompra[Cantidad]*ListadelaCompra[Precio]), \"\")","v":{"v":0,"d":"0.00 €"}}]
[null,null,"Platos de plástico","Artículos de consumo",null,null,{"$f":"IFERROR(SUM(ListadelaCompra[Cantidad]*ListadelaCompra[Precio]), \"\")","v":{"v":0,"d":"0.00 €"}}]
[null,null,"Servilletas","Artículos de consumo",null,null,{"$f":"IFERROR(SUM(ListadelaCompra[Cantidad]*ListadelaCompra[Precio]), \"\")","v":{"v":0,"d":"0.00 €"}}]
[{"$nulls":6},{"$f":"SUBTOTAL(109,ListadelaCompra[Precio total])","v":{"v":0,"d":"0.00 €"}}]